bitfinex/quotes_BTCUSD_20220405
["timestamp","ask_amount","ask_price","bid_price","bid_amount"]
[1649172389516,0.324517,45755.0,45747.0,0.2105161]
[1649172389619,0.0005456,45753.0,45747.0,0.2105161]
[1649172389720,0.0005456,45753.0,45743.0,0.1]
[1649172390337,0.0005456,45753.0,45744.0,0.324517]
[1649172390426,0.0005456,45753.0,45750.0,0.054622]
[1649172390526,0.05,45759.0,45750.0,0.054622]
[1649172390628,0.324517,45761.0,45750.0,0.054622]
[1649172390876,0.1,45761.0,45750.0,0.054622]
[1649172390973,0.00054561,45751.0,45750.0,0.054622]
[1649172391375,0.00054561,45751.0,45750.0,0.34414169]
[1649172391698,0.00054561,45751.0,45750.0,0.39414169]
[1649172391801,0.17548044,45762.0,45750.0,0.39414169]
[1649172391902,0.17548044,45762.0,45756.0,0.22718475]
[1649172392100,0.17548044,45762.0,45755.0,0.054616]
[1649172392600,0.17548044,45762.0,45761.0,0.23573]
[1649172392702,0.17548044,45762.0,45751.0,0.01093]
[1649172392703,0.24182787,45759.0,45751.0,0.01093]
[1649172392854,0.24182787,45759.0,45754.0,0.324517]
[1649172392950,0.24182787,45759.0,45751.0,0.01093]
[1649172392951,0.24182787,45759.0,45752.0,0.0437]
[1649172393057,0.24182787,45759.0,45753.0,0.324517]
[1649172393201,0.24182787,45759.0,45753.0,0.374517]
[1649172393300,0.24182787,45759.0,45753.0,0.518217]
[1649172393407,0.00050915,45757.0,45753.0,0.518217]
[1649172393602,0.00050915,45757.0,45754.0,0.30928536]
[1649172393703,0.00050915,45757.0,45755.0,0.324517]
[1649172393806,0.00050915,45757.0,45754.0,0.30928536]
[1649172393906,0.00050915,45757.0,45754.0,0.38147216]
[1649172394204,0.24182787,45759.0,45754.0,0.38147216]
[1649172394555,0.00050418,45758.0,45754.0,0.38147216]
[1649172394657,0.00050418,45758.0,45754.0,0.1]
[1649172395054,0.00050418,45758.0,45753.0,0.0437]
[1649172395395,0.24182787,45759.0,45753.0,0.0437]
[1649172395697,0.00050418,45758.0,45753.0,0.35802827]
[1649172395796,0.00050418,45758.0,45753.0,0.45802827]
[1649172396598,0.24182787,45759.0,45753.0,0.45802827]
[1649172396797,0.00050427,45758.0,45753.0,0.45802827]
[1649172397300,0.00050427,45758.0,45753.0,0.1937]
[1649172397500,0.00050427,45758.0,45753.0,0.0937]
[1649172397851,0.24182787,45759.0,45753.0,0.0937]
[1649172398048,0.00047255,45758.0,45753.0,0.0937]
[1649172398249,0.30151184,45758.0,45753.0,0.0937]
[1649172398498,0.00047255,45758.0,45753.0,0.0937]
[1649172399002,0.24182787,45759.0,45753.0,0.0937]
[1649172399202,0.00047255,45758.0,45753.0,0.0937]
[1649172400203,0.24182787,45759.0,45753.0,0.0937]
[1649172400505,0.00047359,45758.0,45753.0,0.0937]
[1649172400613,0.00047359,45758.0,45757.0,0.324517]
[1649172400763,0.00047359,45758.0,45757.0,0.385447]
[1649172400859,0.00047359,45758.0,45757.0,0.529147]
[1649172400957,0.00047359,45758.0,45757.0,0.80522401]
[1649172401356,0.24182787,45759.0,45757.0,0.80522401]
[1649172401459,0.24182787,45759.0,45758.0,0.01093]
[1649172401657,0.24182787,45759.0,45758.0,0.05463]
[1649172402409,0.76462559,45759.0,45758.0,0.05463]
[1649172402857,0.76462559,45759.0,45758.0,0.01093]
[1649172403157,0.76462559,45759.0,45757.0,0.01093]
[1649172403263,0.76462559,45759.0,45753.0,0.01093]
[1649172403360,0.624517,45758.0,45753.0,0.01093]
[1649172403460,0.324517,45757.0,45745.0,0.01093]
[1649172403562,0.35770322,45757.0,45745.0,0.01093]
[1649172403660,0.03318622,45757.0,45744.0,0.31022865]
[1649172403809,0.324517,45756.0,45745.0,0.01093]
[1649172404010,0.324517,45756.0,45743.0,0.01093]
[1649172404110,0.160363,45755.0,45743.0,0.01093]
[1649172404211,0.00047561,45753.0,45743.0,0.01093]
[1649172404414,0.30840834,45749.0,45743.0,0.01093]
[1649172404612,0.30956456,45749.0,45743.0,0.01093]
[1649172404911,0.24110131,45746.0,45743.0,0.01093]
[1649172405013,0.00119932,45746.0,45743.0,0.01093]
[1649172405261,0.00119932,45746.0,45744.0,0.324517]
[1649172405361,0.00119932,45746.0,45745.0,0.01093]
[1649172405460,0.00047543,45751.0,45745.0,0.01093]
[1649172405562,0.00047543,45751.0,45743.0,0.01093]
[1649172406060,0.22391324,45748.0,45743.0,0.01093]
[1649172406161,0.00047543,45751.0,45743.0,0.01093]
[1649172406266,0.324517,45755.0,45743.0,0.01093]
[1649172406412,0.25571304,45753.0,45743.0,0.01093]
[1649172406546,0.00047543,45751.0,45743.0,0.01093]
[1649172407103,0.22806165,45747.0,45743.0,0.01093]
[1649172407502,0.25571304,45753.0,45743.0,0.01093]
[1649172407698,0.00047544,45751.0,45743.0,0.01093]
[1649172408000,0.28975343,45746.0,45743.0,0.01093]
[1649172408103,0.28975343,45746.0,45742.0,0.00147554]
[1649172408599,0.286886,45746.0,45742.0,0.001]
[1649172408848,0.286886,45746.0,45742.0,0.00147556]
[1649172408949,0.51728437,45746.0,45742.0,0.00147556]
[1649172409802,0.51728437,45746.0,45742.0,0.001]
[1649172410052,0.51728437,45746.0,45742.0,0.00147556]
[1649172411055,0.51728437,45746.0,45742.0,0.001]
[1649172411259,0.51728437,45746.0,45742.0,0.00147555]
[1649172411554,0.324517,45745.0,45742.0,0.00147555]
[1649172411656,0.51728437,45746.0,45742.0,0.00147555]
[1649172411859,0.286886,45746.0,45742.0,0.00147555]
[1649172411956,0.00047545,45751.0,45742.0,0.00147555]
[1649172412057,0.00047545,45751.0,45742.0,0.05611255]
[1649172412159,0.324517,45750.0,45742.0,0.05611255]
[1649172412259,0.324517,45754.0,45742.0,0.055637]
[1649172412456,0.322167,45754.0,45742.0,0.05611256]
[1649172412556,0.00047547,45751.0,45742.0,0.05611256]
[1649172412859,0.21841505,45750.0,45742.0,0.29510833]
[1649172412961,0.00047547,45751.0,45742.0,0.54401239]
[1649172413162,0.00047547,45751.0,45742.0,0.64401239]
[1649172413263,0.00047547,45751.0,45742.0,0.69401239]
[1649172413464,0.2622776,45756.0,45742.0,0.69353683]
[1649172413663,0.2622776,45756.0,45746.0,0.054631]
[1649172413765,0.00047547,45751.0,45746.0,0.109263]
[1649172414095,0.324525,45750.0,45746.0,0.109263]
[1649172414195,0.00047547,45751.0,45746.0,0.109263]
[1649172414596,0.2991086,45753.0,45746.0,0.109263]
[1649172414899,0.00047548,45751.0,45746.0,0.109263]
[1649172415796,0.01093,45755.0,45746.0,0.109263]
[1649172415903,0.324525,45754.0,45746.0,0.109263]
[1649172415998,0.324525,45754.0,45746.0,0.054631]
[1649172416100,0.24279468,45753.0,45746.0,0.054631]
[1649172416196,0.00047548,45751.0,45746.0,0.054631]
[1649172417001,0.00047548,45751.0,45747.0,0.324525]
[1649172417103,0.01093,45758.0,45747.0,0.324525]
[1649172417251,0.25275787,45759.0,45746.0,0.054631]
[1649172417350,0.26099745,45755.0,45746.0,0.054631]
[1649172417451,0.00047548,45751.0,45746.0,0.054631]
[1649172417556,0.00047548,45751.0,45747.0,0.324525]
[1649172417893,0.00047548,45751.0,45750.0,0.23484274]
[1649172418244,0.25275787,45759.0,45746.0,0.054631]
[1649172418345,0.30275787,45759.0,45746.0,0.054631]
[1649172418544,0.30116912,45753.0,45746.0,0.054631]
[1649172418645,0.00047547,45753.0,45746.0,0.054631]
[1649172418845,0.00047547,45753.0,45747.0,0.324525]
[1649172419049,0.00047547,45753.0,45748.0,0.054622]
[1649172419273,0.00047547,45753.0,45752.0,0.23834008]
[1649172419449,0.24182787,45759.0,45752.0,0.23834008]
[1649172419651,0.30590928,45758.0,45752.0,0.23834008]
[1649172419747,0.00047554,45753.0,45752.0,0.23834008]
[1649172420349,0.00047554,45753.0,45748.0,0.1]
[1649172420445,0.00047554,45753.0,45748.0,0.15]
[1649172420649,0.30590928,45758.0,45748.0,0.15]
[1649172420749,0.324525,45757.0,45748.0,0.15]
[1649172420848,0.30590928,45758.0,45748.0,0.05]
[1649172421003,0.00047554,45753.0,45745.0,0.27187914]
[1649172421096,0.00047554,45753.0,45746.0,0.01093]
[1649172421395,0.00047554,45753.0,45743.0,0.25933698]
[1649172421602,0.00047554,45753.0,45743.0,0.30933698]
[1649172421705,0.00047554,45753.0,45744.0,0.324525]
[1649172421804,0.00047554,45753.0,45745.0,0.01093]
[1649172421904,0.25990358,45757.0,45746.0,0.15320986]
[1649172422105,0.00024642,45751.0,45747.0,0.30860481]
[1649172422206,0.00024642,45751.0,45745.0,0.01093]
[1649172422405,0.00024642,45751.0,45746.0,0.324525]
[1649172422506,0.00024642,45751.0,45745.0,0.01093]
[1649172423008,0.25990358,45757.0,45744.0,0.01093]
[1649172423208,0.25990358,45757.0,45745.0,0.2528005]
[1649172423309,0.00047595,45751.0,45746.0,0.01093]
[1649172423608,0.00047595,45751.0,45747.0,0.324525]
[1649172423811,0.00047595,45751.0,45747.0,0.424525]
[1649172424009,0.00047595,45751.0,45748.0,0.3]
[1649172424111,0.00047595,45751.0,45749.0,0.324525]
[1649172424210,0.24182787,45759.0,45750.0,0.3]
[1649172424512,0.00047595,45751.0,45750.0,0.3]
[1649172424611,0.00047595,45751.0,45750.0,0.98752224]
[1649172424862,0.00047595,45751.0,45750.0,1.08752224]
[1649172425447,0.52010232,45759.0,45750.0,1.08752224]
[1649172425547,0.52010232,45759.0,45750.0,0.76299724]
[1649172425748,0.00048677,45753.0,45751.0,0.324525]
[1649172425849,0.00048677,45753.0,45751.0,0.424525]
[1649172426106,0.00048677,45753.0,45751.0,0.1]
[1649172426201,0.00048677,45753.0,45752.0,0.324525]
[1649172426298,0.00048677,45753.0,45752.0,0.3]
[1649172426700,0.24182787,45759.0,45752.0,0.3]
[1649172426803,0.24182787,45759.0,45753.0,0.324525]
[1649172426909,0.24182787,45759.0,45757.0,0.22939218]
[1649172427004,0.24182787,45759.0,45758.0,0.624525]
[1649172427601,0.24182787,45759.0,45758.0,0.98212886]
[1649172427802,0.24182787,45759.0,45758.0,1.32305478]
[1649172428002,0.24182787,45759.0,45758.0,1.37766378]
[1649172428101,0.24182787,45759.0,45758.0,1.29110824]
[1649172430350,0.24182787,45759.0,45758.0,1.30203824]
[1649172430500,0.24182787,45759.0,45758.0,1.34573824]
[1649172431154,0.24182787,45759.0,45758.0,1.54302245]
[1649172431451,0.24182787,45759.0,45758.0,2.20932245]
[1649172431754,0.24182787,45759.0,45758.0,1.90932245]
[1649172431851,0.24182787,45759.0,45758.0,0.91849745]
[1649172431953,0.24182787,45759.0,45758.0,0.91736513]
[1649172432054,0.24182787,45759.0,45758.0,0.40191421]
[1649172432155,0.24182787,45759.0,45758.0,0.72643921]
[1649172432405,0.24182787,45759.0,45758.0,0.15463]
[1649172432504,0.24182787,45759.0,45758.0,0.0437]
[1649172432956,0.48598998,45759.0,45750.0,0.01093]
[1649172433050,0.3,45758.0,45750.0,0.0437]
[1649172433150,0.74903583,45759.0,45751.0,0.335455]
[1649172433449,0.74903583,45759.0,45751.0,0.01093]
[1649172433654,0.74903583,45759.0,45752.0,0.324525]
[1649172433750,0.74903583,45759.0,45753.0,0.00593]
[1649172433853,0.74903583,45759.0,45751.0,0.01093]
[1649172433951,0.74903583,45759.0,45752.0,0.324525]
[1649172434051,0.74903583,45759.0,45753.0,0.01093]
[1649172434151,0.74903583,45759.0,45751.0,0.01093]
[1649172434152,0.00047805,45757.0,45751.0,0.01093]
[1649172434249,0.00047805,45757.0,45752.0,0.324525]
[1649172434350,0.00047805,45757.0,45753.0,0.01093]
[1649172435106,0.74903583,45759.0,45753.0,0.01093]
[1649172435405,0.00047805,45757.0,45753.0,0.01093]
[1649172435706,0.00047805,45757.0,45747.0,0.23591703]
[1649172435809,0.00047805,45757.0,45748.0,0.324525]
[1649172435909,0.00047805,45757.0,45749.0,0.01093]
[1649172436005,0.00047805,45757.0,45747.0,0.22498703]
[1649172436006,0.00047805,45757.0,45748.0,0.01093]
[1649172436256,0.74903583,45759.0,45748.0,0.01093]
[1649172436498,0.00047804,45755.0,45748.0,0.01093]
[1649172436600,0.00047804,45755.0,45749.0,0.324525]
[1649172436702,0.00047804,45755.0,45750.0,0.01093]
[1649172436801,0.00047804,45755.0,45750.0,0.06093]
[1649172437102,0.00047804,45755.0,45750.0,0.01093]
[1649172437453,0.74903583,45759.0,45750.0,0.01093]
[1649172437756,0.00047802,45755.0,45750.0,0.01093]
[1649172437954,0.00047802,45755.0,45748.0,0.324525]
[1649172438055,0.00047802,45755.0,45749.0,0.01093]
[1649172438157,0.00047802,45755.0,45747.0,0.01093]
[1649172438456,0.30202527,45750.0,45748.0,0.324525]
[1649172438607,0.00047802,45755.0,45749.0,0.01093]
[1649172438712,0.3,45758.0,45747.0,0.01093]
[1649172438807,0.50487372,45759.0,45747.0,0.01093]
[1649172439058,0.00047802,45753.0,45747.0,0.01093]
[1649172439359,0.00047802,45753.0,45748.0,0.324525]
[1649172439460,0.00047802,45753.0,45747.0,0.01093]
[1649172439561,0.00047802,45753.0,45748.0,0.324525]
[1649172439763,0.00047802,45753.0,45749.0,0.23149292]
[1649172439861,0.26146528,45757.0,45750.0,0.324525]
[1649172439961,0.26146528,45757.0,45748.0,0.1]
[1649172440161,0.00047803,45753.0,45748.0,0.1]
[1649172440273,0.00047803,45753.0,45749.0,0.324525]
[1649172440365,0.00047803,45753.0,45749.0,0.424525]
[1649172440462,0.24138016,45757.0,45749.0,0.1]
[1649172440562,0.24138016,45757.0,45750.0,0.33305892]
[1649172440816,0.24138016,45757.0,45750.0,0.1]
[1649172440913,0.24050679,45757.0,45750.0,0.1]
[1649172441966,0.24050679,45757.0,45748.0,0.45901156]
[1649172442066,0.24182787,45759.0,45749.0,0.324525]
[1649172442173,0.24182787,45759.0,45750.0,0.324525]
[1649172442269,0.29182787,45759.0,45751.0,0.324525]
[1649172442368,0.29182787,45759.0,45751.0,0.1]
[1649172442719,0.29182787,45759.0,45752.0,0.324525]
[1649172442819,0.29182787,45759.0,45751.0,0.1]
[1649172442917,0.29182787,45759.0,45752.0,0.324525]
[1649172443018,0.29182787,45759.0,45753.0,0.324525]
[1649172443120,0.29182787,45759.0,45754.0,0.23073086]
[1649172443121,0.24182787,45759.0,45754.0,0.23073086]
[1649172443571,0.24182787,45759.0,45756.0,0.324525]
[1649172443775,0.24210878,45759.0,45756.0,0.424525]
[1649172444004,0.24210878,45759.0,45756.0,0.1]
[1649172444203,0.24210878,45759.0,45757.0,0.6199284]
[1649172444302,0.24210878,45759.0,45757.0,0.7199284]
[1649172444502,0.24210878,45759.0,45757.0,0.3954034]
[1649172444602,0.24182787,45759.0,45758.0,0.324525]
[1649172444802,0.24182787,45759.0,45758.0,0.424525]
[1649172445206,0.24182787,45759.0,45758.0,0.479133]
[1649172445408,0.24182787,45759.0,45758.0,0.1]
[1649172445810,0.24182787,45759.0,45755.0,0.01093]
[1649172445906,0.24182787,45759.0,45756.0,0.324525]
[1649172446106,0.24182787,45759.0,45756.0,0.1]
[1649172446207,0.23006359,45758.0,45756.0,0.1]
[1649172446809,0.23006359,45758.0,45757.0,0.324525]
[1649172447011,0.23006359,45758.0,45757.0,0.1]
[1649172447620,0.24152538,45759.0,45758.0,0.324525]
[1649172447842,0.24152538,45759.0,45758.0,0.424525]
[1649172449748,0.24152538,45759.0,45758.0,0.66131813]
[1649172450047,0.24152538,45759.0,45758.0,0.424525]
[1649172450802,0.24152538,45759.0,45758.0,0.59269097]
[1649172451775,0.24152538,45759.0,45758.0,0.60362097]
[1649172453327,0.24152538,45759.0,45758.0,0.435455]
[1649172455652,0.24152538,45759.0,45758.0,0.63625493]
[1649172456107,0.24152538,45759.0,45758.0,0.9739613]
[1649172456205,0.24152538,45759.0,45758.0,0.66091787]
[1649172460799,0.00047806,45761.0,45758.0,0.66091787]
[1649172460902,0.00047806,45761.0,45760.0,0.31305555]
[1649172461003,0.00047806,45761.0,45760.0,0.63758055]
[1649172461151,0.00047806,45761.0,45760.0,0.76224349]
[1649172461556,0.28192514,45771.0,45760.0,0.43771849]
[1649172461656,0.05,45773.0,45768.0,0.17596154]
[1649172461903,0.05,45772.0,45768.0,0.17596154]
[1649172462005,0.05,45772.0,45768.0,0.46408336]
[1649172462201,0.05,45774.0,45768.0,0.46408336]
[1649172462305,0.324525,45773.0,45768.0,0.46408336]
[1649172462402,0.05,45773.0,45768.0,0.46408336]
[1649172462602,0.324525,45772.0,45768.0,0.46408336]
[1649172462748,0.05,45774.0,45768.0,0.46408336]
[1649172462946,0.325003,45773.0,45768.0,0.46408336]
[1649172463045,0.325003,45773.0,45763.0,0.054605]
[1649172463146,0.3,45772.0,45763.0,0.054605]
[1649172463397,0.3,45772.0,45760.0,0.01093]
[1649172463496,0.3,45772.0,45761.0,0.26832268]
[1649172463946,0.2357093,45766.0,45761.0,0.26832268]
[1649172464051,0.2357093,45766.0,45760.0,0.23755556]
[1649172464152,0.05,45771.0,45763.0,0.1575042]
[1649172464153,0.00049729,45769.0,45763.0,0.1575042]
[1649172464849,0.00049729,45769.0,45763.0,0.42583308]
[1649172465050,0.05,45771.0,45763.0,0.2575042]
[1649172465248,0.26940374,45768.0,45763.0,0.2575042]
[1649172465352,0.26990104,45768.0,45763.0,0.1]
[1649172466150,0.26990104,45768.0,45762.0,0.26832888]
[1649172466255,0.26940374,45768.0,45762.0,0.26832888]
[1649172466598,0.26990104,45768.0,45762.0,0.26832888]
[1649172466702,0.0004973,45768.0,45763.0,0.1696945]
[1649172466797,0.0004973,45768.0,45767.0,0.25691492]
[1649172467450,0.05,45771.0,45767.0,0.25691492]
[1649172467752,0.24200533,45769.0,45767.0,0.25691492]
[1649172467854,0.00047319,45770.0,45767.0,0.25691492]
[1649172467951,0.158004,45769.0,45763.0,0.2696945]
[1649172468052,0.00047319,45770.0,45762.0,0.36832888]
[1649172468152,0.00047319,45770.0,45762.0,0.26832888]
[1649172468251,0.00047319,45770.0,45762.0,0.36832888]
[1649172468403,0.324525,45769.0,45762.0,0.1]
[1649172468502,0.00047319,45770.0,45762.0,0.1]
[1649172468705,0.05,45771.0,45762.0,0.1]
[1649172468805,0.324525,45770.0,45762.0,0.36832888]
[1649172468905,0.0004732,45768.0,45762.0,0.36832888]
[1649172469005,0.0004732,45768.0,45762.0,0.52199021]
[1649172469212,0.0004732,45768.0,45762.0,0.25366133]
[1649172469306,0.0004732,45768.0,45762.0,0.15366133]
[1649172469405,0.0004732,45768.0,45762.0,0.42199021]
[1649172469506,0.2610429,45768.0,45762.0,0.42199021]
[1649172469605,0.2610429,45768.0,45762.0,0.52199021]
[1649172469808,0.0004732,45768.0,45762.0,0.52199021]
[1649172469907,0.05,45771.0,45762.0,0.25366133]
[1649172470252,0.0004732,45767.0,45762.0,0.52199021]
[1649172470451,0.0004732,45767.0,45762.0,0.25366133]
[1649172470753,0.0004732,45767.0,45762.0,0.42199021]
[1649172470852,0.0004732,45767.0,45762.0,0.52199021]
[1649172471059,0.26315803,45769.0,45762.0,0.52199021]
[1649172471310,0.00047563,45767.0,45762.0,0.25366133]
[1649172471602,0.00047563,45767.0,45762.0,0.1]
[1649172471905,0.00047563,45767.0,45761.0,0.26832888]
[1649172472207,0.00047563,45767.0,45760.0,0.26832888]
[1649172472307,0.35,45769.0,45761.0,0.26832888]
[1649172472407,0.05,45769.0,45761.0,0.26832888]
[1649172472610,0.00047563,45766.0,45761.0,0.26832888]
[1649172473510,0.05,45771.0,45761.0,0.26832888]
[1649172473607,0.26669196,45768.0,45762.0,0.15930459]
[1649172473707,0.26669196,45768.0,45762.0,0.42763347]
[1649172473809,0.00047563,45766.0,45762.0,0.52763347]
[1649172473909,0.00047563,45766.0,45762.0,0.36832888]
[1649172474147,0.00047563,45766.0,45762.0,0.1]
[1649172474700,0.05,45770.0,45762.0,0.1]
[1649172474798,0.05,45770.0,45762.0,0.36832888]
[1649172474901,0.05,45769.0,45762.0,0.26832888]
[1649172475000,0.05,45769.0,45762.0,0.36832888]
[1649172475001,0.00047667,45766.0,45762.0,0.36832888]
[1649172475852,0.05,45769.0,45763.0,0.27961047]
[1649172475953,0.31354183,45771.0,45765.0,0.16519158]
[1649172476104,0.05,45771.0,45767.0,0.324525]
[1649172476210,0.05,45771.0,45768.0,0.01092]
[1649172476307,0.03908126,45771.0,45769.0,0.3493774]
[1649172476409,0.03908126,45771.0,45770.0,0.22359018]
[1649172476509,0.03908126,45771.0,45770.0,0.324525]
[1649172476606,0.03908126,45771.0,45770.0,0.59285388]
[1649172476707,0.03908126,45771.0,45770.0,0.69285388]
[1649172476811,0.03908126,45771.0,45770.0,0.424525]
[1649172476911,0.05,45783.0,45770.0,1.38548652]
[1649172477010,0.05,45783.0,45774.0,0.25631649]
[1649172477111,0.05,45783.0,45778.0,0.26491515]
[1649172477209,0.05,45783.0,45779.0,0.324525]
[1649172477307,0.05,45783.0,45779.0,0.424525]
[1649172477508,0.05,45783.0,45779.0,0.1]
[1649172477775,0.324525,45782.0,45779.0,0.1]
[1649172477972,0.324525,45783.0,45779.0,0.1]
[1649172478072,0.01,45784.0,45779.0,0.1]
[1649172478173,0.324525,45783.0,45779.0,0.1]
[1649172478272,0.324525,45782.0,45776.0,0.23448563]
[1649172478374,0.22069257,45782.0,45774.0,0.22356563]
[1649172478674,0.2097924,45782.0,45776.0,0.17881685]
[1649172478774,0.2504587,45780.0,45776.0,0.17881685]
[1649172479276,0.324525,45778.0,45776.0,0.17881685]
[1649172479376,0.2504587,45780.0,45775.0,0.17881685]
[1649172479481,0.324525,45778.0,45775.0,0.17881685]
[1649172479576,0.324525,45779.0,45775.0,0.17881685]
[1649172480080,0.05,45778.0,45775.0,0.17881685]
[1649172480182,0.05,45778.0,45776.0,0.17881685]
[1649172480280,0.05,45778.0,45775.0,0.17881685]
[1649172480382,0.05,45778.0,45774.0,0.17881685]
[1649172480935,0.324525,45777.0,45774.0,0.17881685]
[1649172481034,0.624525,45777.0,45774.0,0.17881685]
[1649172481237,0.674525,45777.0,45772.0,0.17881685]
[1649172481336,0.88702622,45777.0,45771.0,0.17881685]
[1649172481515,0.158004,45775.0,45770.0,0.17881685]
[1649172481654,0.3,45774.0,45768.0,0.17881685]
[1649172481754,0.324525,45773.0,45768.0,0.17881685]
[1649172481907,0.324525,45773.0,45767.0,0.17881685]
[1649172482008,0.28914912,45772.0,45766.0,0.17881685]
[1649172482152,0.28914912,45772.0,45764.0,0.22356563]
[1649172482153,0.458004,45771.0,45765.0,0.17881685]
[1649172482255,0.01092,45770.0,45765.0,0.17881685]
[1649172482352,0.324525,45769.0,45765.0,0.17881685]
[1649172482453,0.63107505,45769.0,45765.0,0.17881685]
[1649172482652,0.63107505,45769.0,45764.0,0.17881685]
[1649172482751,0.63107505,45769.0,45763.0,0.17881685]
[1649172482951,0.05,45767.0,45762.0,0.17881685]
[1649172483052,0.299101,45764.0,45762.0,0.17881685]
[1649172483154,0.324525,45763.0,45762.0,0.17881685]
[1649172483654,0.324525,45763.0,45759.0,0.22356563]
[1649172484054,0.299101,45764.0,45759.0,0.22356563]
[1649172484155,0.324525,45763.0,45760.0,0.22356563]
[1649172484509,0.3250004,45763.0,45760.0,0.22356563]
[1649172484604,0.0004754,45763.0,45760.0,0.22356563]
[1649172484805,0.0004754,45763.0,45759.0,0.22356563]
[1649172484908,0.324525,45762.0,45759.0,0.22356563]
[1649172485106,0.324525,45761.0,45759.0,0.22356563]
[1649172485249,0.324525,45762.0,45759.0,0.22356563]
[1649172485498,0.324525,45763.0,45760.0,0.22356563]
[1649172485599,0.324525,45763.0,45759.0,0.22356563]
[1649172485698,0.30345424,45760.0,45759.0,0.22356563]
[1649172485899,0.00047543,45762.0,45759.0,0.22356563]
[1649172486201,0.00047543,45762.0,45760.0,0.22356563]
[1649172486651,0.324525,45761.0,45760.0,0.22356563]
[1649172486753,0.324525,45763.0,45760.0,0.22356563]
[1649172486952,0.23084704,45762.0,45760.0,0.22356563]
[1649172487155,0.00047543,45763.0,45760.0,0.22356563]
[1649172487256,0.324525,45762.0,45760.0,0.22356563]
[1649172487355,0.00047543,45763.0,45760.0,0.22356563]
[1649172487659,0.00047543,45763.0,45761.0,0.22356563]
[1649172487857,0.05,45765.0,45761.0,0.22356563]
[1649172487960,0.05,45766.0,45761.0,0.22356563]
[1649172488058,0.05,45766.0,45762.0,0.22356563]
[1649172488209,0.00047543,45764.0,45763.0,0.22356563]
[1649172488607,0.00047543,45764.0,45761.0,0.26832888]
[1649172488708,0.00047543,45764.0,45762.0,0.3002875]
[1649172488808,0.00047543,45764.0,45763.0,0.27821451]
[1649172488911,0.00047543,45764.0,45763.0,0.054607]
[1649172489060,0.05,45768.0,45763.0,0.054607]
[1649172489161,0.05,45768.0,45765.0,0.22360171]
[1649172489361,0.00047541,45766.0,45765.0,0.22360171]
[1649172490263,0.05,45769.0,45765.0,0.22360171]
[1649172490563,0.0004754,45768.0,45765.0,0.22360171]
[1649172491170,5.738e-05,45768.0,45765.0,0.22360171]
[1649172491466,0.324525,45770.0,45766.0,0.22360171]
[1649172491868,0.60016116,45770.0,45766.0,0.22360171]
[1649172492017,0.05,45771.0,45766.0,0.22360171]
[1649172492120,0.324525,45770.0,45766.0,0.22360171]
[1649172492217,0.05,45771.0,45766.0,0.22360171]
[1649172492416,0.324525,45770.0,45766.0,0.22360171]
[1649172492516,0.324525,45771.0,45766.0,0.22360171]
[1649172492851,0.324525,45771.0,45762.0,0.3002875]
[1649172492951,0.0004757,45770.0,45766.0,0.22361386]
[1649172493361,0.0004757,45770.0,45767.0,0.22361386]
[1649172493660,0.0004757,45770.0,45768.0,0.22361386]
[1649172493753,0.0004757,45770.0,45769.0,0.22361386]
[1649172493854,0.05,45772.0,45769.0,0.22361386]
[1649172493955,0.05,45774.0,45769.0,0.22361386]
[1649172494154,0.0004757,45771.0,45769.0,0.22361386]
[1649172494456,0.0004757,45771.0,45766.0,0.26833664]
[1649172494457,0.0004757,45771.0,45768.0,0.22361386]
[1649172494556,0.0004757,45771.0,45769.0,0.54281525]
[1649172495053,0.05,45774.0,45769.0,0.54281525]
[1649172495358,0.00047569,45772.0,45769.0,0.54281525]
[1649172495459,0.00047569,45772.0,45770.0,0.24358484]
[1649172495659,0.00047569,45772.0,45770.0,0.4671987]
[1649172495756,0.00047569,45772.0,45770.0,0.22361386]
[1649172495859,0.00047569,45772.0,45771.0,0.324525]
[1649172496160,0.00047569,45772.0,45771.0,0.26833664]
[1649172496261,0.05,45776.0,45771.0,0.26833664]
[1649172496357,0.03858148,45776.0,45771.0,0.26833664]
[1649172496511,0.03858148,45776.0,45774.0,0.22356665]
[1649172496816,0.03858148,45776.0,45774.0,0.44597657]
[1649172496911,0.29626079,45782.0,45774.0,0.44597657]
[1649172497014,0.01092,45782.0,45777.0,0.23234029]
[1649172497412,0.05,45783.0,45777.0,0.23234029]
[1649172497413,0.1,45783.0,45777.0,0.23234029]
[1649172497514,0.05,45783.0,45782.0,0.002]
[1649172497613,0.14488949,45783.0,45782.0,0.002]
[1649172497915,0.09488949,45783.0,45782.0,0.002]
[1649172498015,0.01,45784.0,45782.0,0.002]
[1649172498916,0.05,45783.0,45782.0,0.002]
[1649172499218,0.30001553,45783.0,45782.0,0.002]
[1649172499319,0.62454053,45783.0,45782.0,0.002]
[1649172499620,0.87462455,45783.0,45782.0,0.002]
[1649172499722,0.55009955,45783.0,45782.0,0.002]
[1649172499819,0.30008402,45783.0,45782.0,0.002]
[1649172500119,0.05,45783.0,45782.0,0.002]
[1649172500965,0.33211493,45783.0,45782.0,0.002]
[1649172501465,0.05,45783.0,45782.0,0.002]
[1649172505949,0.05,45783.0,45782.0,0.326525]
[1649172506200,0.05,45783.0,45782.0,0.002]
[1649172508001,0.01,45784.0,45782.0,0.002]
[1649172509006,0.05,45783.0,45782.0,0.002]
[1649172509507,0.00296688,45781.0,45778.0,0.01092]
[1649172509710,0.00296688,45781.0,45776.0,0.01092]
[1649172509810,0.00296688,45781.0,45777.0,0.324525]
[1649172509913,0.00296688,45781.0,45778.0,0.335445]
[1649172510060,0.00296688,45781.0,45778.0,0.06092]
[1649172510167,0.00296688,45781.0,45778.0,0.11092]
[1649172510362,0.00296688,45781.0,45778.0,0.16092]
[1649172510963,0.05,45779.0,45778.0,0.16092]
[1649172511073,0.05,45779.0,45778.0,0.1]
[1649172511164,0.05,45779.0,45774.0,0.01092]
[1649172511366,0.28784981,45777.0,45774.0,0.01092]
[1649172511606,0.28784981,45777.0,45773.0,0.01092]
[1649172512104,0.28835858,45777.0,45773.0,0.01092]
[1649172513007,0.30460086,45776.0,45773.0,0.01092]
[1649172513107,0.30460086,45776.0,45772.0,0.01092]
[1649172513408,0.30460086,45776.0,45770.0,0.01092]
[1649172513860,0.3,45775.0,45770.0,0.01092]
[1649172513960,0.324525,45774.0,45771.0,0.17876417]